bitfinex-derivatives/quotes_ETHF0:USTF0_20250520
["timestamp","ask_amount","ask_price","bid_price","bid_amount"]
[1747760593234,4.19745,2482.6,2482.5,3.2078]
[1747760593430,0.80532,2482.5,2482.4,8.005]
[1747760593627,0.80532,2482.5,2482.1,3.2078]
[1747760593628,0.80542,2482.2,2482.1,3.2078]
[1747760594129,0.80548,2482.0,2481.9,0.21853702]
[1747760594622,0.80552,2481.9,2481.8,8.004]
[1747760594828,2.18262,2481.9,2481.8,11.2118]
[1747760595031,4.197245,2481.9,2481.8,11.2118]
[1747760596239,0.80558,2481.7,2481.6,0.32229002]
[1747760596547,0.80558,2481.7,2481.6,4.33570002]
[1747760596834,2.82037,2481.7,2481.6,4.33570002]
[1747760597538,2.82037,2481.7,2481.6,3.53009002]
[1747760597737,4.17147,2481.7,2481.6,3.53009002]
[1747760598238,4.17147,2481.7,2481.6,4.33570002]
[1747760598538,4.17147,2481.7,2481.6,3.53009002]
[1747760599234,0.80553,2481.9,2481.8,0.80555]
[1747760599439,0.6703,2482.1,2482.0,0.80548]
[1747760599641,0.6703,2482.1,2482.0,4.01328]
[1747760599836,2.684765,2482.1,2482.0,4.01328]
[1747760600037,3.490215,2482.1,2482.0,3.2078]
[1747760600435,3.490215,2482.1,2482.0,4.5509]
[1747760601632,3.490215,2482.1,2482.0,12.6239]
[1747760602234,3.490215,2482.1,2482.0,13.42938]
[1747760602637,3.490215,2482.1,2482.0,12.6239]
[1747760602840,3.490215,2482.1,2482.0,12.94614036]
[1747760603044,3.490215,2482.1,2482.0,13.75162036]
[1747760603338,1.46348,2482.4,2482.3,0.80539]
[1747760603544,2.0426,2482.6,2482.5,0.80532]
[1747760603733,4.86195,2482.6,2482.5,8.87832]
[1747760603929,2.0426,2482.6,2482.5,8.87832]
[1747760604156,4.05666,2482.6,2482.5,8.87832]
[1747760604441,2.0426,2482.6,2482.5,9.20056036]
[1747760604841,2.84789,2482.6,2482.5,9.20056036]
[1747760605042,2.84789,2482.6,2482.5,8.39524036]
[1747760605636,2.84789,2482.6,2482.5,9.20056036]
[1747760605836,2.0426,2482.6,2482.5,9.20056036]
[1747760606141,2.84789,2482.6,2482.5,9.20056036]
[1747760606341,2.0426,2482.6,2482.5,9.20056036]
[1747760607039,2.84789,2482.6,2482.5,9.20056036]
[1747760607238,2.0426,2482.6,2482.5,9.20056036]
[1747760607451,2.84789,2482.6,2482.5,9.20056036]
[1747760609442,2.84789,2482.6,2482.5,1.12756036]
[1747760609653,4.86195,2482.6,2482.5,8.39424036]
[1747760610146,4.86195,2482.6,2482.5,9.19956036]
[1747760610647,4.86195,2482.6,2482.5,1.12756036]
[1747760610845,4.86195,2482.6,2482.5,8.39424036]
[1747760611249,4.86195,2482.6,2482.5,9.19956036]
[1747760611545,9.86195,2482.6,2482.5,0.32224036]
[1747760612145,12.60195,2482.6,2482.5,0.32224036]
[1747760612649,0.80532,2482.5,2482.4,0.80534]
[1747760612946,2.17102,2482.5,2482.4,0.80534]
[1747760613147,4.18516001,2482.5,2482.4,0.80534]
[1747760614153,0.80535,2482.4,2482.3,5.35819]
[1747760614345,2.18005,2482.4,2482.3,11.2798]
[1747760614645,4.19427,2482.4,2482.3,12.08519]
[1747760615846,4.19427,2482.4,2482.3,12.40741331]
[1747760616553,4.19427,2482.4,2482.3,11.60202331]
[1747760617044,4.19427,2482.4,2482.3,12.40742331]
[1747760617253,3.38892,2482.4,2482.3,12.40742331]
[1747760617450,0.08486477,2482.5,2482.4,0.80536]
[1747760617651,3.2078,2483.2,2482.4,0.80536]
[1747760617652,2.74,2483.3,2482.9,0.8052]
[1747760617843,0.8051,2483.2,2483.1,3.2078]
[1747760618149,4.11461,2483.3,2483.2,0.8051]
[1747760618346,4.11461,2483.3,2483.2,2.0993]
[1747760618853,0.80511,2483.2,2483.1,3.2078]
[1747760619145,2.10101,2483.2,2483.1,3.2078]
[1747760619349,4.11458,2483.2,2483.1,3.2078]
[1747760620548,4.11458,2483.2,2483.1,4.33506546]
[1747760620748,4.11458,2483.2,2483.1,3.52992546]
[1747760621054,4.11458,2483.2,2483.1,4.33506546]
[1747760622352,4.11458,2483.2,2483.1,4.32540851]
[1747760622651,2.81868,2483.2,2483.1,4.32540851]
[1747760623243,5.2973,2483.6,2483.4,0.80501]
[1747760623553,0.80503,2483.5,2483.4,8.071]
[1747760623745,0.80503,2483.5,2483.4,8.87602]
[1747760624046,2.81836,2483.5,2483.4,12.08382]
[1747760624644,2.81836,2483.5,2483.4,13.39192]
[1747760624854,4.22336,2483.5,2483.4,13.39192]
[1747760626154,3.41833,2483.5,2483.4,13.39192]
[1747760626452,4.22334,2483.5,2483.4,13.39192]
[1747760627046,2.01333,2483.5,2483.4,13.39192]
[1747760627252,1.70806407,2483.9,2483.7,0.80492]
[1747760627452,1.70806407,2483.9,2483.4,12.5869]
[1747760627453,4.52614907,2483.9,2483.8,0.80491]
[1747760627647,4.52614907,2483.9,2483.8,8.07]
[1747760627851,4.52598907,2483.9,2483.8,8.07]
[1747760628046,7.26598907,2483.9,2483.8,8.07]
[1747760628648,7.26598907,2483.9,2483.8,8.87491]
[1747760629348,7.26598907,2483.9,2483.8,8.07]
[1747760629751,7.35085384,2483.9,2483.8,8.07]
[1747760630047,6.34348977,2483.9,2483.8,8.07]
[1747760630248,6.34348977,2483.9,2483.6,1.3691]
[1747760630249,0.80495,2483.7,2483.6,1.3691]
[1747760630459,0.80495,2483.7,2483.6,10.24308]
[1747760630657,2.818115,2483.7,2483.6,10.24308]
[1747760630854,2.013165,2483.7,2483.6,10.24308]
[1747760631764,2.818115,2483.7,2483.6,8.069]
[1747760632061,6.127165,2483.7,2483.4,4.564]
[1747760632253,0.80501,2483.5,2483.4,4.01284]
[1747760632455,1.49641,2483.6,2483.5,0.80501]
[1747760632654,4.8837,2483.6,2483.5,0.80501]
[1747760632958,4.88367,2483.6,2483.5,8.032]
[1747760633156,7.62367,2483.6,2483.5,8.032]
[1747760633465,6.81869,2483.6,2483.5,8.83701]
[1747760633658,4.75329,2483.6,2483.5,10.19321]
[1747760633962,5.55827,2483.6,2483.5,10.19321]
[1747760634164,2.81827,2483.6,2483.5,10.19321]
[1747760634364,0.80498,2483.6,2483.5,10.19321]
[1747760635163,3.54498,2483.6,2483.5,10.19321]
[1747760636164,0.80498,2483.6,2483.5,10.19321]
[1747760636666,2.818225,2483.6,2483.5,10.19321]
[1747760636863,0.80498,2483.6,2483.5,10.19321]
[1747760638769,2.74,2483.7,2483.6,0.80498]
[1747760638970,5.558145,2483.7,2483.6,1.50808]
[1747760639463,4.753205,2483.7,2483.6,1.50808]
[1747760639669,2.74,2483.7,2483.6,1.50808]
[1747760639869,3.54494,2483.7,2483.6,1.50808]
[1747760640166,0.80494,2483.7,2483.6,1.50808]
[1747760641363,0.80493,2483.8,2483.7,0.80491]
[1747760641671,0.78556477,2483.9,2483.8,0.80491]
[1747760641965,2.09786977,2483.9,2483.8,0.80491]
[1747760642158,2.09786977,2483.9,2483.8,2.86411]
[1747760643271,0.08486477,2483.9,2483.8,2.86411]
[1747760643473,0.88974477,2483.9,2483.8,2.86411]
[1747760644280,0.08486477,2483.9,2483.8,2.86411]
[1747760644478,0.88974477,2483.9,2483.8,2.86411]
[1747760645081,3.62974477,2483.9,2483.8,2.86411]
[1747760645779,3.62974477,2483.9,2483.8,3.18612932]
[1747760646982,5.64274977,2483.9,2483.8,3.18612932]
[1747760647282,0.88974477,2483.9,2483.8,3.18612932]
[1747760647478,0.08486477,2483.9,2483.8,3.18612932]
[1747760647685,0.08486477,2483.9,2483.8,1.69891932]
[1747760647981,2.90274977,2483.9,2483.8,9.72991932]
[1747760648181,5.64274977,2483.9,2483.8,10.53482932]
[1747760649585,5.64274977,2483.9,2483.8,2.50382932]
[1747760649775,5.64274977,2483.9,2483.8,10.53482932]
[1747760650678,5.64274977,2483.9,2483.8,0.32201932]
[1747760650880,10.64274977,2483.9,2483.8,0.32201932]
[1747760651278,11.91934977,2483.9,2483.8,0.32201932]
[1747760651477,6.91934977,2483.9,2483.8,0.32201932]
[1747760651674,11.91934977,2483.9,2483.8,0.32201932]
[1747760651877,6.11446977,2483.9,2483.8,0.32201932]
[1747760652077,6.91934977,2483.9,2483.8,0.32201932]
[1747760653178,6.11446977,2483.9,2483.8,9.15692932]
[1747760653480,2.82486477,2483.9,2483.8,10.52282932]
[1747760653678,2.82486477,2483.9,2483.8,11.20202932]
[1747760654185,0.08486477,2483.9,2483.8,11.20202932]
[1747760654388,2.09786977,2483.9,2483.8,10.52282932]
[1747760654578,2.90274977,2483.9,2483.8,10.52282932]
[1747760655081,4.83786977,2483.9,2483.8,10.52282932]
[1747760656083,2.82486477,2483.9,2483.8,10.52282932]
[1747760657880,2.82486477,2483.9,2483.8,10.74136634]
[1747760659082,0.08486477,2483.9,2483.8,10.74136634]
[1747760659282,2.97586407,2484.5,2484.4,0.80472]
[1747760659477,2.97586407,2484.5,2484.4,12.04252]
[1747760659678,1.00736407,2484.5,2484.4,12.04252]
[1747760660085,1.00736407,2484.5,2484.4,13.38652]
[1747760660991,1.00736407,2484.5,2484.4,14.00000119]
[1747760662593,1.00736407,2484.5,2484.4,13.92737482]
[1747760662790,1.00736407,2484.5,2484.4,18.92737482]
[1747760662996,3.70916407,2485.4,2485.1,0.80446]
[1747760663196,0.80447,2485.2,2485.1,8.82446]
[1747760663597,2.81642,2485.2,2485.1,10.23766]
[1747760664089,2.81642,2485.2,2485.1,8.02]
[1747760664295,0.80459,2484.8,2484.7,4.0124]
[1747760664597,0.80459,2484.8,2484.7,12.0324]
[1747760665088,0.80458,2484.9,2484.8,0.80457]
[1747760665290,0.80459,2484.8,2484.7,4.0124]
[1747760665489,0.80459,2484.8,2484.7,12.0324]
[1747760665689,2.17089,2484.8,2484.7,12.0324]
[1747760666203,4.91089,2484.8,2484.7,12.0324]
[1747760666689,4.1063,2484.8,2484.7,12.0324]
[1747760667196,4.1063,2484.8,2484.7,3.2078]
[1747760667391,6.923165,2484.8,2484.7,11.2278]
[1747760667695,0.80466,2484.6,2484.5,0.80467]
[1747760667883,0.80466,2484.6,2484.5,8.82467]
[1747760668397,0.80472,2484.4,2484.3,5.38642]
[1747760668597,0.80472,2484.4,2484.3,3.2078]
[1747760668903,0.80475,2484.3,2484.2,0.22488133]
[1747760669196,2.77255,2484.3,2484.2,0.22488133]
[1747760669395,4.78523,2484.3,2484.2,0.00604583]
[1747760670197,7.52523,2484.3,2484.2,0.00604583]
[1747760670693,0.80485,2484.0,2483.9,3.2078]
[1747760670895,0.80485,2484.0,2483.9,4.01268]
[1747760671199,0.80484,2484.1,2484.0,0.80483]
[1747760671398,3.9806,2484.3,2484.2,0.80479]
[1747760671695,0.70510351,2484.5,2484.4,0.80472]
[1747760671998,0.70510351,2484.5,2484.4,8.82472]
[1747760672192,2.71762351,2484.5,2484.4,8.82472]
[1747760672389,0.00600351,2484.5,2484.4,10.19372]
[1747760672593,3.02588758,2484.5,2484.4,10.19372]
[1747760674099,5.76588758,2484.5,2484.4,10.19372]
[1747760674299,3.75336758,2484.5,2484.4,10.19372]
[1747760674502,3.83823235,2484.5,2484.4,10.19372]
[1747760674797,4.64292235,2484.5,2484.4,10.19372]
[1747760675098,4.64292235,2484.5,2484.4,10.51565829]
[1747760675301,4.98845828,2484.5,2484.4,10.51565829]
[1747760675493,2.83086828,2484.5,2484.4,10.51565829]
[1747760675797,2.44e-06,2484.5,2484.4,15.51565829]
[1747760676197,2.44e-06,2484.5,2484.4,18.25565829]
[1747760676700,2.44e-06,2484.5,2484.4,18.69511244]
[1747760677091,2.44e-06,2484.5,2484.4,15.95511244]
[1747760677900,2.44e-06,2484.5,2484.4,15.51565829]
[1747760678099,2.44e-06,2484.5,2484.4,18.25565829]
[1747760678300,2.6829,2485.4,2485.3,0.80443]
[1747760678603,2.1747,2485.4,2485.3,8.019]
[1747760678789,3.4873,2485.4,2485.3,8.019]
[1747760678997,3.4873,2485.4,2485.3,8.82343]
[1747760679202,6.2273,2485.4,2485.3,8.82343]
[1747760679894,8.23909,2485.4,2485.3,8.82343]
[1747760681300,7.43469,2485.4,2485.3,8.82343]
[1747760681497,2.74,2485.4,2485.3,10.17323]
[1747760681702,2.74,2485.4,2485.3,10.87043]
[1747760682811,2.74,2485.4,2485.3,15.87043]
[1747760683303,2.6927,2485.9,2485.7,0.80427]
[1747760683501,0.8043,2485.7,2485.6,0.00604583]
[1747760683702,0.8043,2485.7,2485.6,11.23084583]
[1747760683906,2.815845,2485.7,2485.6,11.23084583]
[1747760684097,3.5443,2485.7,2485.6,11.23084583]
[1747760684301,5.555845,2485.7,2485.6,4.01817583]
[1747760684503,5.555845,2485.7,2485.6,12.03517583]
[1747760684899,5.555845,2485.7,2485.6,3.21384583]
[1747760685104,5.555845,2485.7,2485.6,11.23084583]
[1747760685504,5.555845,2485.7,2485.6,12.03517583]
[1747760685698,5.555845,2485.7,2485.6,11.23084583]
[1747760686610,4.751545,2485.7,2485.6,12.03517583]
[1747760687116,5.555845,2485.7,2485.6,12.03517583]
[1747760687412,6.888745,2485.7,2485.6,12.03517583]
[1747760687612,4.751545,2485.7,2485.6,12.03517583]
[1747760688312,6.084445,2485.7,2485.6,12.03517583]
[1747760689715,6.16930977,2485.7,2485.6,12.03517583]
[1747760689911,6.97360977,2485.7,2485.6,12.03517583]
[1747760691318,6.97360977,2485.7,2485.6,3.21384583]
[1747760691516,6.97360977,2485.7,2485.6,11.22984583]
[1747760692008,6.97360977,2485.7,2485.6,12.03417583]
[1747760693819,6.97360977,2485.7,2485.6,4.01817583]
[1747760694021,6.97360977,2485.7,2485.6,12.05417583]
[1747760697818,2.82486477,2485.7,2485.6,12.05417583]
[1747760698314,2.82486477,2485.7,2485.6,17.05417583]
[1747760698618,2.82486477,2485.7,2485.6,14.06067583]
[1747760698923,2.82486477,2485.7,2485.6,14.38239433]
[1747760699214,2.82486477,2485.7,2485.6,6.34639433]
[1747760699525,2.82486477,2485.7,2485.6,14.38239433]
[1747760700410,2.82486477,2485.7,2485.6,14.67387548]
[1747760701218,0.12135477,2485.7,2485.6,19.67387548]
[1747760701425,4.77e-06,2485.7,2485.6,19.67387548]
[1747760701817,4.77e-06,2485.7,2485.6,19.8197387]
[1747760702017,1.00736407,2486.7,2486.6,0.80401]
[1747760702216,1.00736407,2486.7,2486.6,12.04681]
[1747760702621,3.06956407,2487.1,2486.9,0.80388]
[1747760702817,5.07997907,2487.1,2487.0,12.04205451]
[1747760703022,3.87341407,2487.1,2487.0,12.04205451]
[1747760703228,7.81997907,2487.1,2486.7,4.5102]
[1747760703424,0.8039,2487.0,2486.9,0.8039]
[1747760703723,2.1621,2487.0,2486.9,0.8039]
[1747760703916,3.368695,2487.0,2486.8,8.035]
[1747760704118,0.80391,2486.9,2486.8,8.035]
[1747760704314,1.3582,2486.9,2486.8,8.83894]
[1747760704717,2.74,2487.0,2486.9,0.80396]
[1747760704919,2.74,2487.0,2486.9,2.15216]
[1747760705118,4.750495,2487.0,2486.9,2.15216]
[1747760705422,5.554425,2487.0,2486.9,2.15216]
[1747760705619,0.804,2486.8,2486.7,3.2078]
[1747760705823,0.804,2486.8,2486.5,1.59709902]
[1747760705824,0.80406,2486.6,2486.5,0.21819902]
[1747760706022,5.80406,2486.6,2486.5,0.21819902]
[1747760706220,7.81488,2486.6,2486.5,0.21819902]
[1747760706421,0.80416,2486.3,2486.2,0.43734437]
[1747760706620,4.01196,2486.3,2486.2,0.43734437]
[1747760706824,11.02302,2486.3,2486.2,0.43734437]
[1747760707131,13.76302,2486.3,2486.2,0.43734437]
[1747760707828,12.95886,2486.3,2485.9,0.80426]
[1747760708030,12.95886,2486.3,2485.7,11.2418]
[1747760708031,0.80432,2485.9,2485.8,0.8043]
[1747760708329,0.80428,2486.0,2485.9,0.80426]
[1747760708526,2.01058,2486.1,2485.7,11.2418]
[1747760708831,0.80432,2485.8,2485.7,12.04612]
[1747760709036,0.80432,2485.8,2485.7,11.2418]
[1747760709222,5.55578501,2485.8,2485.7,12.04615]
[1747760709525,2.74,2485.8,2485.7,12.04615]
[1747760709926,2.74,2485.8,2485.7,12.04715]
[1747760710122,2.74,2485.8,2485.7,12.36891252]
[1747760710923,5.55578501,2485.8,2485.7,11.56456252]
[1747760711521,5.55578501,2485.8,2485.7,3.52956252]
[1747760711720,11.90948501,2485.8,2485.7,3.52956252]
[1747760712530,6.90948501,2485.8,2485.7,3.52956252]
[1747760713231,6.90948501,2485.8,2485.7,4.33391252]
[1747760713533,6.10516501,2485.8,2485.7,4.01215]
[1747760713735,6.90948501,2485.8,2485.7,5.30095]
[1747760714034,6.90948501,2485.8,2485.7,4.4966]
[1747760714832,6.90948501,2485.8,2485.7,5.30095]
[1747760715031,6.90948501,2485.8,2485.7,4.4966]
[1747760715633,6.90948501,2485.8,2485.7,5.30095]
[1747760716334,6.90948501,2485.8,2485.7,4.4966]
[1747760717233,6.90948501,2485.8,2485.7,5.30095]
[1747760717534,6.90948501,2485.8,2485.7,4.4966]
[1747760718134,0.80435,2485.7,2485.6,0.00604583]
[1747760718337,2.11005,2485.7,2485.6,0.00604583]
[1747760718535,4.121595,2485.7,2485.6,0.00604583]
[1747760719240,6.861595,2485.7,2485.6,0.00604583]
[1747760719628,11.861595,2485.7,2485.6,0.00604583]
[1747760719932,6.861595,2485.7,2485.6,0.00604583]
[1747760720136,6.057245,2485.7,2485.6,0.81043583]
[1747760720437,2.74,2485.7,2485.6,17.05423583]
[1747760721028,2.74,2485.7,2485.6,18.42563583]
[1747760722726,2.74,2485.7,2485.6,19.18470359]
[1747760723433,2.74,2485.7,2485.6,14.18470359]
[1747760723730,2.74,2485.7,2485.6,19.18470359]
[1747760723931,4.77e-06,2485.8,2485.7,0.80435]
[1747760724531,4.77e-06,2485.8,2485.7,5.80435]
[1747760725342,2.74000477,2485.8,2485.7,5.80435]
[1747760725729,2.74000477,2485.8,2485.7,6.12607339]
[1747760726338,0.55249477,2485.8,2485.7,6.12607339]
[1747760726638,0.66716179,2486.9,2486.8,0.804]
[1747760726945,1.47113179,2486.9,2486.8,8.92]
[1747760727234,4.21113179,2486.9,2486.8,8.92]
[1747760727441,6.2217068,2486.9,2486.8,8.43772339]
[1747760728140,11.2217068,2486.9,2486.8,0.32172339]
[1747760728738,6.2217068,2486.9,2486.8,0.32172339]
[1747760729229,0.80403,2486.7,2486.6,8.116]
[1747760729428,6.76051501,2486.9,2486.4,0.80412]
[1747760729429,0.80409,2486.5,2486.4,0.80412]
[1747760729630,0.80409,2486.5,2486.4,8.116]
[1747760729941,2.81501001,2486.5,2486.4,0.80413]
[1747760730235,6.89151001,2486.5,2486.4,0.80413]
[1747760730538,6.89149001,2486.5,2486.4,0.80413]
[1747760730738,6.08740001,2486.5,2486.4,1.12581339]
[1747760730940,4.0765,2486.5,2486.4,1.12581339]
[1747760731132,4.0765,2486.5,2486.4,2.48151339]
[1747760731639,2.74,2486.5,2486.4,2.48151339]
[1747760733039,3.54409,2486.5,2486.4,1.67738339]
[1747760733242,5.55499001,2486.5,2486.4,2.48151339]
[1747760733539,4.75090001,2486.5,2486.4,2.48151339]
[1747760733939,5.55499001,2486.5,2486.4,1.12581339]
[1747760735344,4.83576478,2486.5,2486.4,1.12581339]
[1747760735842,5.63985478,2486.5,2486.4,1.12581339]
[1747760736042,5.63985478,2486.5,2486.4,2.43601339]
[1747760736343,4.83576478,2486.5,2486.4,2.43601339]
[1747760736636,2.82486477,2486.5,2486.4,2.43601339]
[1747760736845,2.82486477,2486.5,2486.4,3.13711339]
[1747760737737,2.82486477,2486.5,2486.4,3.42898124]
[1747760737943,2.82486477,2486.5,2486.4,8.42898124]
[1747760738145,0.80918477,2486.5,2486.4,8.42898124]
[1747760738445,0.66716179,2487.0,2486.9,0.80397]
[1747760738644,0.66716179,2487.0,2486.9,12.12677]
[1747760739049,0.66716179,2487.0,2486.9,12.44845339]
[1747760739352,3.40716179,2487.0,2486.9,13.12945339]
[1747760739644,2.74,2487.0,2486.9,14.52375339]
[1747760740842,2.74,2487.0,2486.9,13.84275339]
[1747760741044,3.54394,2487.0,2486.9,13.84175339]
[1747760741235,3.54394,2487.0,2486.9,3.52948339]
[1747760741236,5.554435,2487.0,2486.9,3.52948339]
[1747760741642,0.804,2486.8,2486.7,0.29186785]
[1747760742040,7.814655,2486.8,2486.7,0.29186785]
[1747760742235,11.952755,2486.8,2486.7,0.29186785]
[1747760742442,0.80404,2486.7,2486.6,0.43731525]
[1747760742647,5.40994,2486.7,2486.6,0.43731525]
[1747760742848,12.420675,2486.7,2486.6,0.43731525]
[1747760743049,15.160675,2486.7,2486.6,0.43731525]
[1747760743245,0.80413,2486.4,2486.3,0.80416]
[1747760743442,0.08486477,2486.5,2486.4,0.80413]
[1747760743750,0.08486477,2486.5,2486.4,5.36993]
[1747760743943,0.08486477,2486.5,2486.4,6.04863]
[1747760744144,2.82486477,2486.5,2486.4,6.04863]
[1747760744545,2.82486477,2486.5,2486.4,11.04863]
[1747760745758,2.82486477,2486.5,2486.4,6.04863]
[1747760746053,2.82486477,2486.5,2486.4,13.48393]
[1747760748557,2.82486477,2486.5,2486.4,18.48393]
[1747760750156,2.01484477,2486.5,2486.4,18.48393]
[1747760750355,2.0551,2487.2,2487.1,0.80391]
[1747760750552,2.0551,2487.2,2487.1,12.12571]
[1747760750855,4.869315,2487.2,2487.1,12.12571]
[1747760751156,7.609315,2487.2,2487.1,11.3218]
[1747760751359,6.805435,2487.2,2487.1,12.12571]
[1747760752054,7.609315,2487.2,2487.1,12.12571]
[1747760752253,6.805435,2487.2,2487.1,12.12571]
[1747760752854,4.7951,2487.2,2487.1,12.12571]
[1747760753154,4.1306,2487.2,2487.1,12.12571]
[1747760753560,2.74,2487.2,2487.1,12.12571]
[1747760753854,2.74,2487.2,2487.1,17.12571]
[1747760754257,2.74,2487.2,2487.1,4.01171]
[1747760754447,2.74,2487.2,2487.1,16.5832496]
[1747760755658,2.74,2487.2,2487.1,16.5822496]
[1747760756256,2.74,2487.2,2487.1,17.02085386]
[1747760756465,4.750335,2487.2,2487.1,17.02085386]
[1747760756847,4.0361,2487.2,2487.1,17.02085386]
[1747760758053,4.0361,2487.2,2487.1,16.5822496]
[1747760758253,6.046435,2487.2,2487.1,16.5822496]
[1747760762656,2.74,2487.2,2487.1,16.5822496]
[1747760762857,1.8186,2487.2,2487.1,21.5822496]
[1747760763354,1.8186,2487.2,2487.1,16.5822496]
[1747760763854,1.8186,2487.2,2487.1,17.02085386]
[1747760764254,3.828935,2487.2,2487.1,17.02085386]
[1747760764662,5.893135,2487.2,2487.1,17.02085386]
[1747760764862,5.97799977,2487.2,2487.1,17.02085386]
[1747760765759,6.78186977,2487.2,2487.1,0.3215396]
[1747760766559,0.80391,2487.1,2487.0,12.248]
[1747760766759,1.3807,2487.1,2487.0,13.05194]
[1747760766959,1.90346477,2487.2,2487.1,0.80391]
[1747760767156,0.08486477,2487.2,2487.1,5.40831]
[1747760767364,0.08486477,2487.2,2487.1,10.40831]
[1747760768059,0.08486477,2487.2,2487.1,17.65631]
[1747760768260,2.82486477,2487.2,2487.1,17.65631]
[1747760769667,2.82486477,2487.2,2487.1,18.41645949]
[1747760771156,2.01532477,2487.2,2487.1,23.41645949]
[1747760771867,2.10018954,2487.2,2487.1,23.41645949]
[1747760772364,2.10018954,2487.2,2487.1,22.97785523]
[1747760772768,2.10018954,2487.2,2487.1,23.68105523]
[1747760773162,2.10018954,2487.2,2487.1,6.43305523]
[1747760773363,2.6777,2487.8,2487.7,0.80371]
[1747760773563,4.68755,2487.8,2487.7,16.25951]
[1747760773768,2.6777,2487.8,2487.7,16.25951]
[1747760773965,0.66716179,2488.0,2487.9,0.80365]
[1747760774174,3.40716179,2488.0,2487.9,14.36965]
[1747760774675,2.74,2488.0,2487.9,14.36965]
[1747760774970,2.74,2488.0,2487.9,19.98324756]
[1747760775168,0.66716179,2488.2,2488.1,0.80358]
[1747760775369,0.66716179,2488.2,2488.1,16.25838]
[1747760775670,0.66716179,2488.2,2488.1,21.25838]
[1747760775970,0.66716179,2488.2,2488.1,22.59698]
[1747760776274,0.66716179,2488.2,2488.1,5.34998]
[1747760776573,0.66716179,2488.2,2488.1,31.48452523]
[1747760776959,0.66716179,2488.2,2488.1,15.77434523]
[1747760777159,0.66716179,2488.2,2488.1,16.57792523]
[1747760777566,0.66716179,2488.2,2488.1,16.79639855]
[1747760777864,0.66816449,2489.3,2488.9,0.80331]
[1747760778069,3.31026449,2489.3,2489.1,3.2078]
[1747760778270,5.31902449,2489.3,2489.1,3.2078]
[1747760778470,5.31902449,2489.3,2489.1,4.01106]
[1747760778671,5.31902449,2489.3,2489.1,3.2078]
[1747760779868,5.31902449,2489.3,2489.1,4.01106]
[1747760780170,5.40388926,2489.3,2489.1,4.01104]
[1747760780571,5.40388926,2489.3,2489.2,0.80323]
[1747760781071,5.40388926,2489.3,2489.1,3.2078]
[1747760781675,5.40388926,2489.3,2489.2,0.80323]
[1747760781867,5.40380426,2489.3,2489.2,0.80323]
[1747760782170,4.73563977,2489.3,2489.1,4.01105]
[1747760782369,4.73563977,2489.3,2489.2,0.80323]
[1747760782570,4.73563977,2489.3,2489.1,4.01104]
[1747760782873,4.73563977,2489.3,2489.2,0.80323]
[1747760783272,4.73563977,2489.3,2489.1,3.2078]
[1747760783473,4.73563977,2489.3,2489.2,0.80323]
[1747760783671,2.72696477,2489.3,2489.2,2.14443]
[1747760783866,3.2078,2490.0,2489.9,0.803]
[1747760784068,1.00736407,2490.3,2490.0,0.80297]
[1747760784069,1.2911,2490.1,2490.0,0.80297]
[1747760784273,1.2911,2490.1,2489.9,3.2078]
[1747760784471,3.29913,2490.1,2490.0,12.315]
[1747760784972,3.29913,2490.1,2489.9,3.2078]
[1747760785176,0.80307,2489.7,2489.6,3.2078]
[1747760785575,2.811385,2489.7,2489.6,3.2078]
[1747760785765,2.008315,2489.7,2489.6,3.2078]
[1747760786077,0.80307,2489.7,2489.6,3.2078]
[1747760786268,4.790285,2489.7,2489.6,3.2078]
[1747760786574,0.80313,2489.5,2489.4,0.53979452]
[1747760786787,6.019405,2489.5,2489.4,0.53979452]
[1747760786968,6.019405,2489.5,2489.3,0.29137693]
[1747760786969,0.80321,2489.3,2489.0,0.80328]
[1747760787274,0.80323,2489.2,2488.9,13.44366463]
[1747760787578,2.0178,2489.1,2488.9,12.64035463]
[1747760787776,2.0178,2489.1,2489.0,12.313]
[1747760787979,4.02664,2489.1,2489.0,12.313]
[1747760788180,4.02664,2489.1,2488.9,0.32735463]
[1747760788375,4.8299,2489.1,2489.0,12.313]
[1747760788772,0.80329,2489.0,2488.9,0.00603343]
[1747760789069,0.80329,2489.0,2488.5,0.3213212]
[1747760789070,1.3707,2489.0,2488.5,15.8421212]
[1747760789277,3.37974,2489.0,2488.5,15.8421212]
[1747760789478,4.18303,2489.0,2488.9,3.2078]
[1747760790281,0.80336,2488.8,2488.7,0.00603343]
[1747760790679,2.8124,2488.8,2488.7,12.31903343]
[1747760791281,1.3707,2489.0,2488.7,12.31903343]
[1747760791581,1.3707,2489.0,2488.9,4.01113]
[1747760791983,3.37958,2489.0,2488.9,4.01113]
[1747760792387,0.00599209,2489.2,2489.1,0.80326]
[1747760792685,0.00599209,2489.2,2489.1,13.11626]
[1747760792870,3.31551209,2489.2,2488.9,3.2078]
[1747760793174,0.80328,2489.1,2489.0,12.313]
[1747760793380,2.15188,2489.1,2489.0,12.313]
[1747760793569,4.16068,2489.1,2489.0,12.313]
[1747760793777,4.16068,2489.1,2488.9,4.01113]
[1747760793971,4.01523,2489.8,2488.9,4.01113]
[1747760794172,1.16686707,2492.9,2492.7,2.0088051]
[1747760794379,0.31374638,2494.0,2492.7,2.0088051]
[1747760794575,47.44795725,2494.2,2493.1,5.2166051]
[1747760794777,18.42545956,2493.7,2493.1,3.2078]
[1747760794983,29.52751687,2493.5,2493.2,3.2078]
[1747760795283,17.9268,2493.4,2493.1,0.40444578]
[1747760795473,3.2078,2493.4,2492.8,3.2078]
[1747760795673,14.719,2493.3,2492.5,3.2078]
[1747760795982,0.02534871,2492.9,2492.8,3.2078]
[1747760796383,2.03108371,2492.9,2492.8,3.2078]
[1747760796880,2.03108371,2492.9,2492.6,0.00601733]
[1747760797083,0.05049437,2492.8,2492.6,3.21381733]
[1747760797480,2.05634937,2492.8,2492.6,3.21381733]
[1747760797883,2.05634937,2492.8,2492.6,4.01593733]
[1747760798083,2.005855,2492.8,2492.7,0.24527833]
[1747760799083,7.005855,2492.8,2492.7,0.24527833]
[1747760799289,7.03100066,2492.8,2492.7,0.24527833]